[Event "Titled Tuesday Blitz January 10 Late 2023"]
[White "Baskin, Robert"]
[Black "Al-Tarboush, Ward"]
[WhiteFideId "24662402"]
[BlackFideId "7601450"]
[WhiteElo "2442"]
[BlackElo "2256"]
[Result "1-0"]
[Round "08"]
[TimeControl "180+2"]
[Date "2023.01.10"]
[WhiteClock "0:00:08"]
[BlackClock "0:00:08"]

1. d4 {[%clk 0:00:00]}  Nf6 {[%clk 0:00:00]} 2. c4 {[%clk 0:03:00]}  g6 {[%clk 0:02:57]} 3. g3 {[%clk 0:02:57]}  Bg7 {[%clk 0:02:56]} 4. Bg2 {[%clk 0:02:51]}  d5 {[%clk 0:02:55]} 5. cxd5 {[%clk 0:02:51]}  Nxd5 {[%clk 0:02:55]} 6. Nf3 {[%clk 0:02:51]}  Bg4 {[%clk 0:02:56]} 7. Ne5 {[%clk 0:02:51]}  Bxe5 {[%clk 0:02:51]} 8. dxe5 {[%clk 0:02:44]}  c6 {[%clk 0:02:49]} 9. Bh6 {[%clk 0:02:43]}  Qa5+ {[%clk 0:02:47]} 10. Nd2 {[%clk 0:02:37]}  Nd7 {[%clk 0:02:46]} 11. h3 {[%clk 0:02:36]}  Be6 {[%clk 0:02:42]} 12. O-O {[%clk 0:02:35]}  O-O-O {[%clk 0:02:40]} 13. Nc4 {[%clk 0:02:31]}  Qb4 {[%clk 0:02:36]} 14. Rc1 {[%clk 0:02:29]}  Kb8 {[%clk 0:02:34]} 15. a3 {[%clk 0:02:26]}  Qb5 {[%clk 0:02:34]} 16. Qc2 {[%clk 0:02:26]}  N7b6 {[%clk 0:02:33]} 17. b3 {[%clk 0:02:18]}  Rhg8 {[%clk 0:02:31]} 18. Bd2 {[%clk 0:02:09]}  h5 {[%clk 0:02:19]} 19. Rfd1 {[%clk 0:01:55]}  g5 {[%clk 0:02:09]} 20. Be1 {[%clk 0:01:53]}  h4 {[%clk 0:02:02]} 21. g4 {[%clk 0:01:21]}  Nf4 {[%clk 0:01:56]} 22. Rxd8+ {[%clk 0:01:21]}  Rxd8 {[%clk 0:01:52]} 23. Bf1 {[%clk 0:01:08]}  Nxc4 {[%clk 0:01:53]} 24. bxc4 {[%clk 0:00:56]}  Qxe5 {[%clk 0:01:47]} 25. e3 {[%clk 0:00:57]}  Ng6 {[%clk 0:01:45]} 26. Rb1 {[%clk 0:00:57]}  f5 {[%clk 0:01:30]} 27. Bc3 {[%clk 0:00:56]}  Qc7 {[%clk 0:01:16]} 28. gxf5 {[%clk 0:00:45]}  Ne5 {[%clk 0:01:15]} 29. Bxe5 {[%clk 0:00:44]}  Qxe5 {[%clk 0:01:06]} 30. fxe6 {[%clk 0:00:32]}  Qxe6 {[%clk 0:01:06]} 31. Bg2 {[%clk 0:00:31]}  g4 {[%clk 0:01:07]} 32. c5 {[%clk 0:00:28]}  gxh3 {[%clk 0:01:06]} 33. Bf3 {[%clk 0:00:26]}  Qf6 {[%clk 0:01:03]} 34. Qb2 {[%clk 0:00:26]}  Qg6+ {[%clk 0:00:56]} 35. Kh2 {[%clk 0:00:17]}  Rd7 {[%clk 0:00:37]} 36. Qh8+ {[%clk 0:00:15]}  Kc7 {[%clk 0:00:30]} 37. Qe5+ {[%clk 0:00:12]}  Kc8 {[%clk 0:00:27]} 38. Rg1 {[%clk 0:00:13]}  Qf7 {[%clk 0:00:25]} 39. Qe4 {[%clk 0:00:13]}  Kc7 {[%clk 0:00:19]} 40. Qf4+ {[%clk 0:00:02]}  Qxf4+ {[%clk 0:00:16]} 41. exf4 {[%clk 0:00:02]}  Rd3 {[%clk 0:00:16]} 42. Bg4 {[%clk 0:00:03]}  Rxa3 {[%clk 0:00:16]} 43. Bxh3 {[%clk 0:00:02]}  Rf3 {[%clk 0:00:16]} 44. Rd1 {[%clk 0:00:03]}  Rxf2+ {[%clk 0:00:16]} 45. Kg1 {[%clk 0:00:03]}  Rf3 {[%clk 0:00:15]} 46. Rd7+ {[%clk 0:00:03]}  Kc8 {[%clk 0:00:12]} 47. Rd3+ {[%clk 0:00:03]}  Rxh3 {[%clk 0:00:11]} 48. Rxh3 {[%clk 0:00:04]}  b5 {[%clk 0:00:09]} 49. cxb6 {[%clk 0:00:05]}  axb6 {[%clk 0:00:07]} 50. Rxh4 {[%clk 0:00:05]}  c5 {[%clk 0:00:07]} 51. Kf2 {[%clk 0:00:06]}  b5 {[%clk 0:00:08]} 52. Ke3 {[%clk 0:00:07]}  Kd7 {[%clk 0:00:08]} 53. Rh5 {[%clk 0:00:08]}  Kd6 {[%clk 0:00:08]} 54. Kd3 {[%clk 0:00:08]}  e6 {[%clk 0:00:08]} 55. Re5 {[%clk 0:00:08]}  Kd7 {[%clk 0:00:08]} 56. Rxc5 {[%clk 0:00:08]} 1-0


[Site "https://www.chess.com"]

[Event "Titled Tuesday Blitz January 10 Late 2023"]
[White "Solon, Nathan"]
[Black "Ladan, Nicholas"]
[WhiteFideId "2017229"]
[BlackFideId "30918855"]
[WhiteElo "2306"]
[BlackElo "2228"]
[Result "1-0"]
[Round "08"]
[TimeControl "180+2"]
[Date "2023.01.10"]
[WhiteClock "0:01:28"]
[BlackClock "0:00:45"]

1. Nf3 {[%clk 0:00:00]}  d5 {[%clk 0:00:00]} 2. g3 {[%clk 0:03:00]}  g6 {[%clk 0:02:59]} 3. c4 {[%clk 0:03:01]}  c6 {[%clk 0:03:00]} 4. Qa4 {[%clk 0:03:00]}  dxc4 {[%clk 0:02:59]} 5. Qxc4 {[%clk 0:03:00]}  Nf6 {[%clk 0:02:58]} 6. Bg2 {[%clk 0:03:01]}  Bg7 {[%clk 0:02:58]} 7. O-O {[%clk 0:03:00]}  O-O {[%clk 0:02:59]} 8. d4 {[%clk 0:03:00]}  Nbd7 {[%clk 0:02:59]} 9. Nc3 {[%clk 0:02:56]}  a5 {[%clk 0:02:54]} 10. a4 {[%clk 0:02:53]}  Nb6 {[%clk 0:02:34]} 11. Qb3 {[%clk 0:02:50]}  Nbd5 {[%clk 0:02:29]} 12. Rd1 {[%clk 0:02:50]}  Be6 {[%clk 0:02:28]} 13. Ng5 {[%clk 0:02:37]}  Nxc3 {[%clk 0:02:25]} 14. Qxc3 {[%clk 0:02:19]}  Bg4 {[%clk 0:02:11]} 15. Nf3 {[%clk 0:02:19]}  Nd5 {[%clk 0:02:05]} 16. Qb3 {[%clk 0:02:06]}  Nb4 {[%clk 0:02:03]} 17. Bd2 {[%clk 0:02:06]}  Bxf3 {[%clk 0:02:02]} 18. Bxf3 {[%clk 0:02:01]}  Qxd4 {[%clk 0:01:58]} 19. Bc3 {[%clk 0:02:02]}  Qb6 {[%clk 0:01:57]} 20. Rd7 {[%clk 0:01:46]}  Rfe8 {[%clk 0:01:49]} 21. Rad1 {[%clk 0:01:42]}  Rad8 {[%clk 0:01:33]} 22. h4 {[%clk 0:01:34]}  h5 {[%clk 0:01:10]} 23. Kg2 {[%clk 0:01:30]}  Qc5 {[%clk 0:00:45]} 24. Rxd8 {[%clk 0:01:28]} 1-0


[Site "https://www.chess.com"]

[Event "Titled Tuesday Blitz January 10 Late 2023"]
[White "Ismagilov, Damir"]
[Black "Pein, Jonathan"]
[WhiteFideId "34199982"]
[BlackFideId "417092"]
[WhiteElo "2156"]
[BlackElo "2265"]
[Result "1-0"]
[Round "08"]
[TimeControl "180+2"]
[Date "2023.01.10"]
[WhiteClock "0:00:16"]
[BlackClock "0:00:14"]

1. e4 {[%clk 0:00:00]}  e5 {[%clk 0:00:00]} 2. Nf3 {[%clk 0:03:00]}  d6 {[%clk 0:02:59]} 3. d4 {[%clk 0:03:00]}  exd4 {[%clk 0:02:59]} 4. Nxd4 {[%clk 0:03:00]}  Nf6 {[%clk 0:03:00]} 5. Nc3 {[%clk 0:03:01]}  g6 {[%clk 0:03:01]} 6. Bg5 {[%clk 0:03:00]}  Bg7 {[%clk 0:03:01]} 7. Bc4 {[%clk 0:02:58]}  h6 {[%clk 0:03:00]} 8. Bh4 {[%clk 0:02:48]}  O-O {[%clk 0:03:00]} 9. O-O {[%clk 0:02:39]}  Nc6 {[%clk 0:03:00]} 10. Nxc6 {[%clk 0:02:38]}  bxc6 {[%clk 0:03:00]} 11. Qd2 {[%clk 0:02:35]}  Nxe4 {[%clk 0:03:01]} 12. Nxe4 {[%clk 0:02:24]}  Qxh4 {[%clk 0:03:00]} 13. Bd3 {[%clk 0:02:17]}  Bxb2 {[%clk 0:02:58]} 14. Rab1 {[%clk 0:02:11]}  Bg7 {[%clk 0:02:55]} 15. Rb4 {[%clk 0:02:09]}  Qe7 {[%clk 0:02:53]} 16. Re1 {[%clk 0:02:03]}  Qd8 {[%clk 0:02:28]} 17. Ng3 {[%clk 0:01:59]}  Bd7 {[%clk 0:02:17]} 18. Rb7 {[%clk 0:01:39]}  Bc8 {[%clk 0:01:55]} 19. Rb4 {[%clk 0:01:34]}  c5 {[%clk 0:01:51]} 20. Rbb1 {[%clk 0:01:34]}  Be6 {[%clk 0:01:48]} 21. Red1 {[%clk 0:01:33]}  Bxa2 {[%clk 0:01:46]} 22. Rb5 {[%clk 0:01:29]}  Be6 {[%clk 0:01:45]} 23. Re1 {[%clk 0:01:28]}  Qd7 {[%clk 0:01:43]} 24. Ra5 {[%clk 0:01:08]}  Rfe8 {[%clk 0:01:40]} 25. h3 {[%clk 0:01:06]}  c6 {[%clk 0:01:33]} 26. c4 {[%clk 0:00:55]}  Reb8 {[%clk 0:00:55]} 27. Ra6 {[%clk 0:00:49]}  Rb2 {[%clk 0:00:46]} 28. Qf4 {[%clk 0:00:38]}  d5 {[%clk 0:00:44]} 29. cxd5 {[%clk 0:00:38]}  cxd5 {[%clk 0:00:24]} 30. Rd6 {[%clk 0:00:28]}  Qc7 {[%clk 0:00:25]} 31. Bxg6 {[%clk 0:00:28]}  Bf8 {[%clk 0:00:19]} 32. Rexe6 {[%clk 0:00:28]}  fxe6 {[%clk 0:00:16]} 33. Nh5 {[%clk 0:00:16]}  Qxd6 {[%clk 0:00:14]} 34. Qf7+ {[%clk 0:00:16]} 1-0


[Site "https://www.chess.com"]

[Event "Titled Tuesday Blitz January 10 Late 2023"]
[White "Djokic, Mihailo"]
[Black "Bochnicka, Vladimir"]
[WhiteFideId "976440"]
[BlackFideId "14943450"]
[WhiteElo "2192"]
[BlackElo "2327"]
[Result "1-0"]
[Round "08"]
[TimeControl "180+2"]
[Date "2023.01.10"]
[WhiteClock "0:01:43"]
[BlackClock "0:00:06"]

1. e4 {[%clk 0:00:00]}  c5 {[%clk 0:00:00]} 2. Nf3 {[%clk 0:02:56]}  Nc6 {[%clk 0:02:59]} 3. d4 {[%clk 0:02:56]}  cxd4 {[%clk 0:03:00]} 4. Nxd4 {[%clk 0:02:57]}  e5 {[%clk 0:03:00]} 5. Nb5 {[%clk 0:02:58]}  d6 {[%clk 0:03:00]} 6. c4 {[%clk 0:02:58]}  Be7 {[%clk 0:03:01]} 7. N1c3 {[%clk 0:02:58]}  a6 {[%clk 0:03:00]} 8. Na3 {[%clk 0:02:58]}  f5 {[%clk 0:03:00]} 9. exf5 {[%clk 0:02:58]}  Bxf5 {[%clk 0:03:01]} 10. Nd5 {[%clk 0:02:58]}  Nf6 {[%clk 0:03:02]} 11. Bd3 {[%clk 0:02:59]}  Be6 {[%clk 0:02:55]} 12. Nxf6+ {[%clk 0:02:58]}  Bxf6 {[%clk 0:02:55]} 13. O-O {[%clk 0:02:54]}  O-O {[%clk 0:02:55]} 14. Be3 {[%clk 0:02:53]}  Qd7 {[%clk 0:02:49]} 15. Be4 {[%clk 0:02:53]}  Ne7 {[%clk 0:02:25]} 16. b3 {[%clk 0:02:53]}  Nf5 {[%clk 0:02:10]} 17. Nc2 {[%clk 0:02:48]}  Rad8 {[%clk 0:02:06]} 18. Bd5 {[%clk 0:02:46]}  Kh8 {[%clk 0:01:59]} 19. Bxe6 {[%clk 0:02:44]}  Qxe6 {[%clk 0:01:50]} 20. Nb4 {[%clk 0:02:42]}  Nxe3 {[%clk 0:01:51]} 21. fxe3 {[%clk 0:02:42]}  Bg5 {[%clk 0:01:22]} 22. Nd5 {[%clk 0:02:43]}  Rf5 {[%clk 0:01:22]} 23. Rxf5 {[%clk 0:02:09]}  Qxf5 {[%clk 0:00:55]} 24. Qf3 {[%clk 0:02:05]}  Qg6 {[%clk 0:00:54]} 25. Rf1 {[%clk 0:02:05]}  h6 {[%clk 0:00:35]} 26. e4 {[%clk 0:02:03]}  Rg8 {[%clk 0:00:32]} 27. Kh1 {[%clk 0:02:03]}  Qe8 {[%clk 0:00:23]} 28. g3 {[%clk 0:02:03]}  b5 {[%clk 0:00:18]} 29. h4 {[%clk 0:02:01]}  Bd8 {[%clk 0:00:15]} 30. Qf7 {[%clk 0:02:00]}  Qc6 {[%clk 0:00:14]} 31. cxb5 {[%clk 0:01:59]}  axb5 {[%clk 0:00:10]} 32. Rf2 {[%clk 0:01:45]}  Bb6 {[%clk 0:00:10]} 33. Qxg8+ {[%clk 0:01:43]}  Kxg8 {[%clk 0:00:06]} 34. Ne7+ {[%clk 0:01:43]} 1-0


[Site "https://www.chess.com"]

[Event "Titled Tuesday Blitz January 10 Late 2023"]
[White "Pasti, Aron"]
[Black "Filgueira, Hernan"]
[WhiteFideId "785857"]
[BlackFideId "101770"]
[WhiteElo "2361"]
[BlackElo "2283"]
[Result "0-1"]
[Round "08"]
[TimeControl "180+2"]
[Date "2023.01.10"]
[WhiteClock "0:00:03"]
[BlackClock "0:00:20"]

1. e4 {[%clk 0:00:00]}  e6 {[%clk 0:00:00]} 2. d4 {[%clk 0:03:00]}  d5 {[%clk 0:02:59]} 3. Nc3 {[%clk 0:03:00]}  Bb4 {[%clk 0:02:59]} 4. e5 {[%clk 0:02:59]}  c5 {[%clk 0:02:58]} 5. Bd2 {[%clk 0:02:56]}  Nh6 {[%clk 0:02:57]} 6. a3 {[%clk 0:02:56]}  Bxc3 {[%clk 0:02:56]} 7. Bxc3 {[%clk 0:02:49]}  cxd4 {[%clk 0:02:54]} 8. Bxd4 {[%clk 0:02:50]}  Nc6 {[%clk 0:02:52]} 9. Nf3 {[%clk 0:02:50]}  Nf5 {[%clk 0:02:52]} 10. Bc5 {[%clk 0:02:31]}  b6 {[%clk 0:02:51]} 11. Bb5 {[%clk 0:02:27]}  Bd7 {[%clk 0:02:49]} 12. Bxc6 {[%clk 0:02:22]}  Bxc6 {[%clk 0:02:48]} 13. Bd4 {[%clk 0:02:21]}  Bb5 {[%clk 0:02:48]} 14. Qd2 {[%clk 0:02:16]}  O-O {[%clk 0:02:44]} 15. g4 {[%clk 0:02:13]}  Nh4 {[%clk 0:02:39]} 16. Nxh4 {[%clk 0:02:07]}  Qxh4 {[%clk 0:02:35]} 17. O-O-O {[%clk 0:01:57]}  Rfc8 {[%clk 0:02:35]} 18. c3 {[%clk 0:01:58]}  Rc4 {[%clk 0:02:26]} 19. Rdg1 {[%clk 0:01:58]}  Rac8 {[%clk 0:01:59]} 20. Rg3 {[%clk 0:01:58]}  Qe7 {[%clk 0:01:56]} 21. Rh3 {[%clk 0:01:56]}  Be8 {[%clk 0:01:53]} 22. Qc2 {[%clk 0:01:43]}  h6 {[%clk 0:01:48]} 23. Qd2 {[%clk 0:01:39]}  b5 {[%clk 0:01:41]} 24. g5 {[%clk 0:01:38]}  Qxg5 {[%clk 0:01:36]} 25. Be3 {[%clk 0:01:34]}  Qf5 {[%clk 0:01:33]} 26. Bxh6 {[%clk 0:01:22]}  Qxh3 {[%clk 0:01:26]} 27. Rg1 {[%clk 0:01:14]}  g6 {[%clk 0:01:22]} 28. Rg3 {[%clk 0:01:10]}  Qf5 {[%clk 0:01:14]} 29. Bg5 {[%clk 0:01:07]}  Qxe5 {[%clk 0:01:10]} 30. Rf3 {[%clk 0:00:58]}  Qe4 {[%clk 0:01:01]} 31. Rh3 {[%clk 0:00:53]}  Qg4 {[%clk 0:00:54]} 32. Rh6 {[%clk 0:00:38]}  Rd4 {[%clk 0:00:21]} 33. Bf6 {[%clk 0:00:20]}  Qg1+ {[%clk 0:00:20]} 34. Kc2 {[%clk 0:00:05]}  Rxd2+ {[%clk 0:00:20]} 35. Kb3 {[%clk 0:00:03]}  Rxb2+ {[%clk 0:00:20]} 0-1


[Site "https://www.chess.com"]

[Event "Titled Tuesday Blitz January 10 Late 2023"]
[White "Osmonbekov, Talaibek"]
[Black "Denishev, Marat"]
[WhiteFideId "2017253"]
[BlackFideId "24131563"]
[WhiteElo "2137"]
[BlackElo "2255"]
[Result "0-1"]
[Round "08"]
[TimeControl "180+2"]
[Date "2023.01.10"]
[WhiteClock "0:00:01"]
[BlackClock "0:00:36"]

1. d4 {[%clk 0:00:00]}  Nf6 {[%clk 0:00:00]} 2. Bf4 {[%clk 0:03:00]}  c5 {[%clk 0:02:59]} 3. e3 {[%clk 0:03:01]}  Qb6 {[%clk 0:02:58]} 4. b3 {[%clk 0:03:00]}  cxd4 {[%clk 0:02:56]} 5. exd4 {[%clk 0:03:00]}  g6 {[%clk 0:02:56]} 6. Nf3 {[%clk 0:02:59]}  Bg7 {[%clk 0:02:53]} 7. Nbd2 {[%clk 0:02:52]}  O-O {[%clk 0:02:51]} 8. Bd3 {[%clk 0:02:48]}  Nd5 {[%clk 0:02:49]} 9. Nc4 {[%clk 0:02:42]}  Qd8 {[%clk 0:02:43]} 10. Bd2 {[%clk 0:02:35]}  d6 {[%clk 0:02:28]} 11. O-O {[%clk 0:02:10]}  Nc6 {[%clk 0:02:26]} 12. c3 {[%clk 0:02:04]}  e5 {[%clk 0:02:26]} 13. Be4 {[%clk 0:02:03]}  Nde7 {[%clk 0:02:24]} 14. dxe5 {[%clk 0:01:53]}  d5 {[%clk 0:02:01]} 15. Bg5 {[%clk 0:01:31]}  h6 {[%clk 0:01:59]} 16. Bxe7 {[%clk 0:01:25]}  Nxe7 {[%clk 0:01:53]} 17. Bd3 {[%clk 0:01:10]}  dxc4 {[%clk 0:01:53]} 18. Bxc4 {[%clk 0:01:11]}  Bg4 {[%clk 0:01:52]} 19. Qe2 {[%clk 0:01:12]}  Nc6 {[%clk 0:01:46]} 20. e6 {[%clk 0:01:03]}  fxe6 {[%clk 0:01:37]} 21. Bxe6+ {[%clk 0:00:58]}  Bxe6 {[%clk 0:01:38]} 22. Qxe6+ {[%clk 0:00:57]}  Kh7 {[%clk 0:01:39]} 23. Rad1 {[%clk 0:00:57]}  Qf6 {[%clk 0:01:39]} 24. Qxf6 {[%clk 0:00:56]}  Rxf6 {[%clk 0:01:39]} 25. Rd7 {[%clk 0:00:51]}  b6 {[%clk 0:01:39]} 26. Rfd1 {[%clk 0:00:51]}  Re8 {[%clk 0:01:37]} 27. Kf1 {[%clk 0:00:40]}  Rfe6 {[%clk 0:01:34]} 28. Rc7 {[%clk 0:00:36]}  R8e7 {[%clk 0:01:29]} 29. Rc8 {[%clk 0:00:34]}  Bxc3 {[%clk 0:01:25]} 30. Rc1 {[%clk 0:00:21]}  Nd4 {[%clk 0:01:22]} 31. R8xc3 {[%clk 0:00:18]}  Ne2 {[%clk 0:00:40]} 32. Rc7 {[%clk 0:00:17]}  Nxc1 {[%clk 0:00:38]} 33. Rxc1 {[%clk 0:00:10]}  Rd7 {[%clk 0:00:37]} 34. h4 {[%clk 0:00:10]}  a5 {[%clk 0:00:38]} 35. Rc2 {[%clk 0:00:08]}  Kg7 {[%clk 0:00:38]} 36. Rc1 {[%clk 0:00:03]}  Ree7 {[%clk 0:00:38]} 37. h5 {[%clk 0:00:02]}  g5 {[%clk 0:00:37]} 38. g4 {[%clk 0:00:02]}  Rc7 {[%clk 0:00:37]} 39. Rd1 {[%clk 0:00:01]}  Rc2 {[%clk 0:00:37]} 40. Rd6 {[%clk 0:00:01]}  Rf7 {[%clk 0:00:36]} 0-1


[Site "https://www.chess.com"]

[Event "Titled Tuesday Blitz January 10 Late 2023"]
[White "Papasimakopoulos, Alexandros"]
[Black "Itkis, Boris"]
[WhiteFideId "4244125"]
[BlackFideId "1209167"]
[WhiteElo "2401"]
[BlackElo "2329"]
[Result "1-0"]
[Round "08"]
[TimeControl "180+2"]
[Date "2023.01.10"]
[WhiteClock "0:00:29"]
[BlackClock "0:00:08"]

1. d4 {[%clk 0:00:00]}  d5 {[%clk 0:00:00]} 2. c4 {[%clk 0:03:00]}  dxc4 {[%clk 0:02:58]} 3. Nf3 {[%clk 0:03:00]}  Nf6 {[%clk 0:02:59]} 4. e3 {[%clk 0:03:00]}  a6 {[%clk 0:02:59]} 5. Bxc4 {[%clk 0:02:59]}  e6 {[%clk 0:02:59]} 6. O-O {[%clk 0:02:59]}  b5 {[%clk 0:03:00]} 7. Be2 {[%clk 0:02:59]}  Bb7 {[%clk 0:03:00]} 8. a4 {[%clk 0:02:59]}  b4 {[%clk 0:03:01]} 9. b3 {[%clk 0:02:59]}  Nbd7 {[%clk 0:03:01]} 10. Bb2 {[%clk 0:02:59]}  Be7 {[%clk 0:03:01]} 11. Nbd2 {[%clk 0:03:00]}  O-O {[%clk 0:03:00]} 12. Nc4 {[%clk 0:03:00]}  c5 {[%clk 0:03:00]} 13. Rc1 {[%clk 0:02:56]}  Rc8 {[%clk 0:03:00]} 14. Nfe5 {[%clk 0:02:53]}  Nxe5 {[%clk 0:02:56]} 15. dxe5 {[%clk 0:02:52]}  Nd5 {[%clk 0:02:54]} 16. Qd2 {[%clk 0:02:45]}  Qc7 {[%clk 0:02:52]} 17. e4 {[%clk 0:02:37]}  Nb6 {[%clk 0:02:31]} 18. Nd6 {[%clk 0:02:28]}  Rcd8 {[%clk 0:02:30]} 19. Qe3 {[%clk 0:02:29]}  Bxd6 {[%clk 0:02:09]} 20. exd6 {[%clk 0:02:25]}  Qxd6 {[%clk 0:01:51]} 21. Rxc5 {[%clk 0:02:25]}  Qd2 {[%clk 0:01:52]} 22. Bc1 {[%clk 0:02:13]}  Qd4 {[%clk 0:01:52]} 23. Qxd4 {[%clk 0:02:08]}  Rxd4 {[%clk 0:01:34]} 24. f3 {[%clk 0:02:03]}  Rc8 {[%clk 0:01:35]} 25. Rxc8+ {[%clk 0:02:04]}  Nxc8 {[%clk 0:01:13]} 26. Be3 {[%clk 0:01:57]}  Rd8 {[%clk 0:01:13]} 27. Rc1 {[%clk 0:01:58]}  f5 {[%clk 0:01:13]} 28. exf5 {[%clk 0:01:57]}  exf5 {[%clk 0:00:57]} 29. Rc4 {[%clk 0:01:53]}  a5 {[%clk 0:00:58]} 30. Rc5 {[%clk 0:01:43]}  Bd5 {[%clk 0:00:49]} 31. Rxa5 {[%clk 0:01:41]}  Bxb3 {[%clk 0:00:41]} 32. Ra8 {[%clk 0:00:44]}  Re8 {[%clk 0:00:40]} 33. Kf2 {[%clk 0:00:44]}  Nd6 {[%clk 0:00:36]} 34. Rxe8+ {[%clk 0:00:43]}  Nxe8 {[%clk 0:00:21]} 35. a5 {[%clk 0:00:37]}  Nc7 {[%clk 0:00:22]} 36. Bc5 {[%clk 0:00:35]}  Bd5 {[%clk 0:00:19]} 37. Bxb4 {[%clk 0:00:35]}  Bb7 {[%clk 0:00:10]} 38. Bd6 {[%clk 0:00:35]}  Na6 {[%clk 0:00:11]} 39. Bc4+ {[%clk 0:00:31]}  Kh8 {[%clk 0:00:08]} 40. Ke3 {[%clk 0:00:29]} 1-0


[Site "https://www.chess.com"]

[Event "Titled Tuesday Blitz January 10 Late 2023"]
[White "Haydon, David L"]
[Black "Abdulla, Murad"]
[WhiteFideId "415405"]
[BlackFideId "2403757"]
[WhiteElo "2253"]
[BlackElo "2307"]
[Result "1-0"]
[Round "08"]
[TimeControl "180+2"]
[Date "2023.01.10"]
[WhiteClock "0:01:04"]
[BlackClock "0:00:03"]

1. f4 {[%clk 0:00:00]}  d5 {[%clk 0:00:00]} 2. Nf3 {[%clk 0:02:58]}  Nf6 {[%clk 0:02:58]} 3. b3 {[%clk 0:02:58]}  c6 {[%clk 0:02:59]} 4. Bb2 {[%clk 0:02:58]}  Bg4 {[%clk 0:02:57]} 5. e3 {[%clk 0:02:59]}  Nbd7 {[%clk 0:02:57]} 6. Be2 {[%clk 0:02:59]}  e6 {[%clk 0:02:57]} 7. O-O {[%clk 0:03:00]}  Bd6 {[%clk 0:02:56]} 8. c4 {[%clk 0:03:00]}  O-O {[%clk 0:02:56]} 9. Nc3 {[%clk 0:03:00]}  Re8 {[%clk 0:02:56]} 10. d4 {[%clk 0:03:00]}  dxc4 {[%clk 0:02:53]} 11. bxc4 {[%clk 0:03:00]}  c5 {[%clk 0:02:45]} 12. Ne5 {[%clk 0:02:59]}  Bxe2 {[%clk 0:02:45]} 13. Qxe2 {[%clk 0:02:57]}  Rc8 {[%clk 0:02:44]} 14. Rad1 {[%clk 0:02:58]}  Bf8 {[%clk 0:02:39]} 15. d5 {[%clk 0:02:57]}  Qb6 {[%clk 0:02:23]} 16. dxe6 {[%clk 0:02:52]}  Qxe6 {[%clk 0:02:01]} 17. Nd5 {[%clk 0:02:39]}  Nxe5 {[%clk 0:01:58]} 18. Nxf6+ {[%clk 0:02:38]}  gxf6 {[%clk 0:01:50]} 19. fxe5 {[%clk 0:02:33]}  fxe5 {[%clk 0:01:46]} 20. Rd5 {[%clk 0:02:32]}  f6 {[%clk 0:01:46]} 21. e4 {[%clk 0:02:25]}  a6 {[%clk 0:01:45]} 22. a4 {[%clk 0:02:24]}  Rcd8 {[%clk 0:01:39]} 23. Rfd1 {[%clk 0:02:24]}  Be7 {[%clk 0:01:34]} 24. h3 {[%clk 0:02:22]}  Rxd5 {[%clk 0:01:29]} 25. cxd5 {[%clk 0:02:20]}  Qd7 {[%clk 0:01:28]} 26. Rd3 {[%clk 0:02:19]}  c4 {[%clk 0:01:21]} 27. Rg3+ {[%clk 0:02:09]}  Kh8 {[%clk 0:01:16]} 28. Qxc4 {[%clk 0:02:08]}  Rc8 {[%clk 0:01:16]} 29. Qe2 {[%clk 0:01:59]}  b5 {[%clk 0:01:16]} 30. axb5 {[%clk 0:01:55]}  axb5 {[%clk 0:00:57]} 31. Qh5 {[%clk 0:01:54]}  Bd6 {[%clk 0:00:58]} 32. Qh6 {[%clk 0:01:53]}  Qf7 {[%clk 0:00:51]} 33. Rf3 {[%clk 0:01:39]}  Rf8 {[%clk 0:00:44]} 34. Rb3 {[%clk 0:01:38]}  b4 {[%clk 0:00:41]} 35. Bc1 {[%clk 0:01:36]}  Qc7 {[%clk 0:00:41]} 36. Rg3 {[%clk 0:01:28]}  Qf7 {[%clk 0:00:35]} 37. Bd2 {[%clk 0:01:24]}  Rg8 {[%clk 0:00:25]} 38. Rxg8+ {[%clk 0:01:20]}  Kxg8 {[%clk 0:00:24]} 39. Qe3 {[%clk 0:01:19]}  Qc7 {[%clk 0:00:23]} 40. Qg3+ {[%clk 0:01:18]}  Kf7 {[%clk 0:00:18]} 41. Qf3 {[%clk 0:01:16]}  Kg7 {[%clk 0:00:17]} 42. Qg4+ {[%clk 0:01:16]}  Kf7 {[%clk 0:00:08]} 43. Bh6 {[%clk 0:01:16]}  Ke8 {[%clk 0:00:06]} 44. Qg8+ {[%clk 0:01:11]}  Kd7 {[%clk 0:00:02]} 45. Qe6+ {[%clk 0:01:09]}  Kd8 {[%clk 0:00:03]} 46. Bg7 {[%clk 0:01:07]}  Be7 {[%clk 0:00:03]} 47. Bxf6 {[%clk 0:01:04]} 1-0


[Site "https://www.chess.com"]

[Event "Titled Tuesday Blitz January 10 Late 2023"]
[White "Suvorov, Luca"]
[Black "Korchmar, Vasiliy"]
[WhiteFideId "12977071"]
[BlackFideId "24131750"]
[WhiteElo "2310"]
[BlackElo "2438"]
[Result "0-1"]
[Round "08"]
[TimeControl "180+2"]
[Date "2023.01.10"]
[WhiteClock "0:00:15"]
[BlackClock "0:01:14"]

1. d4 {[%clk 0:00:00]}  d5 {[%clk 0:00:00]} 2. c4 {[%clk 0:03:00]}  c6 {[%clk 0:02:59]} 3. Nc3 {[%clk 0:03:00]}  Nf6 {[%clk 0:02:59]} 4. e3 {[%clk 0:02:59]}  e6 {[%clk 0:03:00]} 5. Nf3 {[%clk 0:03:00]}  Nbd7 {[%clk 0:02:59]} 6. Qc2 {[%clk 0:02:59]}  Bd6 {[%clk 0:02:59]} 7. Bd3 {[%clk 0:03:00]}  dxc4 {[%clk 0:02:58]} 8. Bxc4 {[%clk 0:03:00]}  e5 {[%clk 0:02:59]} 9. O-O {[%clk 0:03:01]}  O-O {[%clk 0:03:00]} 10. Rd1 {[%clk 0:02:19]}  exd4 {[%clk 0:02:59]} 11. Nxd4 {[%clk 0:02:18]}  Ne5 {[%clk 0:02:57]} 12. Be2 {[%clk 0:02:14]}  Qe7 {[%clk 0:02:57]} 13. h3 {[%clk 0:02:10]}  Ng6 {[%clk 0:02:57]} 14. Nf5 {[%clk 0:02:10]}  Bxf5 {[%clk 0:02:48]} 15. Qxf5 {[%clk 0:02:09]}  Be5 {[%clk 0:02:47]} 16. Qc2 {[%clk 0:02:10]}  Rad8 {[%clk 0:02:42]} 17. Bd2 {[%clk 0:01:40]}  Bb8 {[%clk 0:02:39]} 18. Be1 {[%clk 0:01:38]}  Qe5 {[%clk 0:02:10]} 19. g3 {[%clk 0:01:15]}  h5 {[%clk 0:02:09]} 20. Bc4 {[%clk 0:01:13]}  Qg5 {[%clk 0:02:01]} 21. f4 {[%clk 0:00:56]}  Qc5 {[%clk 0:01:49]} 22. Na4 {[%clk 0:00:51]}  Qxe3+ {[%clk 0:01:45]} 23. Bf2 {[%clk 0:00:47]}  Rxd1+ {[%clk 0:01:43]} 24. Rxd1 {[%clk 0:00:47]}  Qf3 {[%clk 0:01:33]} 25. Be2 {[%clk 0:00:46]}  Qe4 {[%clk 0:01:34]} 26. Bd3 {[%clk 0:00:26]}  Qf3 {[%clk 0:01:27]} 27. Re1 {[%clk 0:00:27]}  Nxf4 {[%clk 0:01:23]} 28. gxf4 {[%clk 0:00:19]}  Qxf4 {[%clk 0:01:21]} 29. Nc3 {[%clk 0:00:17]}  Qh2+ {[%clk 0:01:22]} 30. Kf1 {[%clk 0:00:14]}  Qxh3+ {[%clk 0:01:20]} 31. Ke2 {[%clk 0:00:14]}  Ng4 {[%clk 0:01:21]} 32. Kd1 {[%clk 0:00:15]}  Nxf2+ {[%clk 0:01:15]} 33. Qxf2 {[%clk 0:00:12]}  Qxd3+ {[%clk 0:01:14]} 34. Qd2 {[%clk 0:00:13]}  Qxd2+ {[%clk 0:01:15]} 35. Kxd2 {[%clk 0:00:14]}  h4 {[%clk 0:01:14]} 36. Ne4 {[%clk 0:00:15]}  f5 {[%clk 0:01:14]} 37. Ng5 {[%clk 0:00:15]}  Bf4+ {[%clk 0:01:14]} 38. Kd3 {[%clk 0:00:15]}  Bxg5 {[%clk 0:01:14]} 0-1


[Site "https://www.chess.com"]